bitfinex/quotes_ETHUSD_20250413
["timestamp","ask_amount","ask_price","bid_price","bid_amount"]
[1744526500282,6.18175,1617.7,1617.5,0.8009]
[1744526500454,1.11947475,1617.8,1617.5,6.1823]
[1744526500455,7.30073475,1617.8,1617.5,6.1823]
[1744526500654,13.48222475,1617.8,1617.4,6.18263]
[1744526500855,13.48222475,1617.8,1617.5,0.618263]
[1744526502066,7.30073475,1617.8,1617.5,0.618263]
[1744526502268,6.98796,1617.8,1617.5,0.618263]
[1744526502569,6.98796,1617.8,1617.5,6.800533]
[1744526502967,0.31014035,1617.7,1617.5,6.800533]
[1744526503267,6.98796,1617.8,1617.5,6.800533]
[1744526503468,0.31014035,1617.7,1617.6,0.6800533]
[1744526503650,6.98796,1617.8,1617.6,0.6800533]
[1744526503851,0.31014035,1617.7,1617.6,0.6800533]
[1744526504053,6.98692,1618.1,1617.6,7.6629433]
[1744526504391,0.31088352,1618.0,1617.7,13.12923433]
[1744526505617,0.31088352,1618.0,1617.7,6.94775433]
[1744526506164,6.49141352,1618.0,1617.7,6.94775433]
[1744526506365,12.67218352,1618.0,1617.7,0.76629433]
[1744526506596,6.18094,1617.9,1617.6,6.18197]
[1744526506772,0.31033127,1617.8,1617.5,6.800573]
[1744526508804,0.31033127,1617.8,1617.5,6.800493]
[1744526508994,0.31033127,1617.8,1617.6,6.18187]
[1744526509812,0.31033127,1617.8,1617.6,12.36369]
[1744526510107,6.98723,1618.0,1617.7,1.236369]
[1744526510298,0.31008352,1617.7,1617.6,6.18182]
[1744526510496,6.98723,1618.0,1617.6,12.36366]
[1744526510707,0.31008352,1617.7,1617.6,6.18182]
[1744526511185,13.16804,1618.0,1617.6,6.18182]
[1744526511510,0.31057899,1617.9,1617.6,6.18182]
[1744526511815,6.49142899,1617.9,1617.6,7.4800493]
[1744526513011,0.31057899,1617.9,1617.6,7.4800493]
[1744526513240,0.31057899,1617.9,1617.8,6.18123]
[1744526513397,9.18013,1618.1,1617.8,6.18123]
[1744526513594,0.28451545,1618.0,1617.9,6.18066]
[1744526513804,6.179,1618.2,1617.9,13.597499]
[1744526514005,0.28516098,1618.1,1617.9,13.597499]
[1744526514228,6.98608,1618.3,1617.9,13.597499]
[1744526514735,0.28540861,1618.2,1617.9,13.597499]
[1744526515126,0.28540861,1618.2,1617.9,7.416839]
[1744526516935,0.28540861,1618.2,1618.1,0.7953]
[1744526517231,6.199,1618.4,1618.1,6.97538]
[1744526517437,0.26439206,1618.3,1618.1,6.97538]
[1744526517731,0.02,1618.4,1618.0,0.7416839]
[1744526517935,0.26414446,1618.2,1618.1,0.7953]
[1744526518130,6.1794,1618.3,1618.1,0.7953]
[1744526518342,0.26477108,1618.2,1618.1,0.7953]
[1744526518543,0.26477108,1618.2,1618.1,1.56702039]
[1744526518838,6.19897,1618.4,1618.1,1.56702039]
[1744526519008,0.26501868,1618.3,1618.1,1.56702039]
[1744526519209,6.19897,1618.4,1618.1,1.56702039]
[1744526519408,0.26501868,1618.3,1618.1,1.56702039]
[1744526519718,6.19897,1618.4,1618.1,1.56702039]
[1744526519944,0.26477108,1618.2,1618.1,1.56702039]
[1744526520142,6.19897,1618.4,1618.1,1.56702039]
[1744526520342,0.26477108,1618.2,1618.1,1.56702039]
[1744526520504,6.19897,1618.4,1618.1,1.56702039]
[1744526520706,0.26477108,1618.2,1618.1,7.74710039]
[1744526520953,6.19897,1618.4,1618.1,7.74710039]
[1744526521155,0.26477108,1618.2,1618.1,7.74710039]
[1744526521354,6.19897,1618.4,1618.1,7.74710039]
[1744526521647,0.26477108,1618.2,1618.1,7.74710039]
[1744526521874,6.19897,1618.4,1618.1,7.74710039]
[1744526522412,0.26501868,1618.3,1618.1,7.74710039]
[1744526522726,6.19897,1618.4,1618.1,7.74710039]
[1744526522929,0.26477108,1618.2,1618.1,0.7953]
[1744526523109,0.26477108,1618.2,1618.0,6.18022]
[1744526523455,0.26452345,1618.1,1618.0,6.18022]
[1744526523751,6.17973,1618.2,1617.9,0.76]
[1744526523937,0.26452345,1618.1,1617.8,6.18101]
[1744526524138,0.26452345,1618.1,1617.8,7.497277]
[1744526524338,6.98443,1618.2,1617.8,13.678387]
[1744526524641,0.26456059,1618.0,1617.9,6.18078]
[1744526525145,6.98443,1618.2,1617.9,6.18078]
[1744526525444,0.26456059,1618.0,1617.9,6.18078]
[1744526525652,6.98443,1618.2,1617.9,6.18078]
[1744526525951,6.1802,1618.1,1617.7,13.16311]
[1744526526131,6.44443863,1618.1,1617.7,13.16311]
[1744526527052,12.62479863,1618.1,1617.7,6.98151]
[1744526527226,6.1805,1618.0,1617.7,6.98151]
[1744526527422,0.807,1617.9,1617.6,14.4746093]
[1744526527734,1.07074328,1617.9,1617.6,14.4746093]
[1744526527942,1.07074328,1617.9,1617.6,8.2946093]
[1744526528145,6.9879,1617.9,1617.6,2.1126293]
[1744526528459,6.9879,1617.9,1617.6,1.2982293]
[1744526528760,0.26201428,1617.8,1617.5,6.18219]
[1744526529458,0.26201428,1617.8,1617.4,6.99711]
[1744526529955,0.26068385,1617.7,1617.5,6.18211]
[1744526530129,7.01245,1617.6,1617.3,6.18301]
[1744526530331,6.18171,1617.7,1617.3,12.3279296]
[1744526530572,0.26018825,1617.5,1617.3,6.18297]
[1744526530733,6.18171,1617.7,1617.3,12.36598]
[1744526531069,0.25994041,1617.4,1617.3,12.36598]
[1744526531228,6.18171,1617.7,1617.3,12.36598]
[1744526531424,0.25994041,1617.4,1617.3,13.684498]
[1744526532069,6.18171,1617.7,1617.3,13.684498]
[1744526532266,0.25994041,1617.4,1617.3,13.684498]
[1744526532439,6.18171,1617.7,1617.3,13.684498]
[1744526532775,12.36356,1617.7,1617.3,7.501488]
[1744526532957,0.26043607,1617.6,1617.3,7.501488]
[1744526533133,0.26043607,1617.6,1617.3,13.684428]
[1744526533335,6.18171,1617.7,1617.3,13.684428]
[1744526533536,0.26018825,1617.5,1617.3,13.684428]
[1744526533771,6.18171,1617.7,1617.3,13.684428]
[1744526533974,0.25994041,1617.4,1617.3,13.684428]
[1744526534176,6.18171,1617.7,1617.3,13.684428]
[1744526534476,6.18171,1617.7,1617.3,7.501458]
[1744526534635,0.26043607,1617.6,1617.3,7.501458]
[1744526535140,0.26018825,1617.5,1617.3,7.501458]
[1744526536763,0.26018825,1617.5,1617.4,6.9329058]
[1744526536971,0.26018825,1617.5,1617.4,7.7579058]
[1744526537337,9.93613,1617.8,1617.4,13.9406658]
[1744526537566,0.26018825,1617.5,1617.4,13.9406658]
[1744526538366,0.26018825,1617.5,1617.4,7.7579058]
[1744526538563,0.26018825,1617.5,1617.4,0.7501458]
[1744526538764,12.3636,1617.7,1617.3,6.18308]
[1744526538944,0.26018825,1617.5,1617.3,6.18308]
[1744526539145,12.3636,1617.7,1617.3,6.18308]
[1744526539344,0.25994041,1617.4,1617.3,6.18299]
[1744526539545,6.18174,1617.7,1617.3,13.685115]
[1744526539842,6.9446,1618.0,1617.4,0.789]
[1744526540045,3.0,1617.9,1617.6,6.18187]
[1744526540269,13.12536,1618.0,1617.7,6.1816]
[1744526540568,6.176,1618.0,1617.8,6.18107]
[1744526540769,6.94835,1618.2,1617.8,6.878077]
[1744526541076,6.94835,1618.2,1617.9,6.18072]
[1744526541260,3.7686,1618.2,1617.9,6.18072]
[1744526541934,0.7686,1618.2,1617.9,6.18072]
[1744526543242,6.94846,1618.2,1617.8,6.878077]
[1744526543863,13.12852,1618.2,1617.8,6.878077]
[1744526544171,15.059072,1618.2,1617.8,6.18107]
[1744526544767,6.18048,1618.0,1617.7,6.97057]
[1744526545967,3.0,1618.1,1617.8,6.18099]
[1744526546136,0.7686,1618.2,1617.9,6.18065]
[1744526546333,13.12789,1618.3,1617.9,12.36129]
[1744526546590,0.02,1618.4,1618.0,0.7726]
[1744526546799,0.02,1618.4,1618.2,6.17941]
[1744526547083,0.02,1618.4,1618.3,6.95192]
[1744526548739,0.18914037,1618.4,1618.3,6.95192]
[1744526549370,0.18914037,1618.4,1618.3,6.17932]
[1744526549786,0.18914037,1618.4,1618.3,7.492453]
[1744526551304,0.18914037,1618.4,1618.3,6.17932]
[1744526556026,0.18914037,1618.4,1618.1,12.35992]
[1744526556310,0.18914037,1618.4,1618.1,6.9406]
[1744526556926,0.18914037,1618.4,1618.1,6.1799]
[1744526557700,6.36833037,1618.4,1618.0,6.18043]
[1744526557900,12.359,1618.3,1617.9,8.177659]
[1744526558069,7.12553437,1618.2,1617.9,6.94153]
[1744526558277,7.12553437,1618.2,1617.8,6.18117]
[1744526558777,13.30553437,1618.2,1617.8,6.18117]
[1744526559303,7.12553437,1618.2,1617.8,6.18117]
[1744526559507,7.12553437,1618.2,1617.8,6.18105]
[1744526559990,7.12553437,1618.2,1617.9,6.18084]
[1744526560920,6.18087,1617.9,1617.6,6.94242]
[1744526561216,0.94478366,1617.8,1617.5,6.18237]
[1744526562078,7.12609366,1617.8,1617.3,8.262945]
[1744526562410,7.12609366,1617.8,1617.3,6.18311]
[1744526562411,0.94478366,1617.8,1617.3,6.18311]
[1744526563000,6.73191,1617.7,1617.3,6.18311]
[1744526563210,6.89012766,1617.7,1617.3,6.18311]
[1744526563392,13.07202766,1617.7,1617.3,6.18311]
[1744526563598,14.0811634,1617.7,1617.3,6.18311]
[1744526564291,6.89011766,1617.7,1617.4,6.18271]
[1744526564690,6.89011766,1617.7,1617.5,6.1822]
[1744526564691,0.15821766,1617.7,1617.5,6.1822]
[1744526564921,0.15821766,1617.7,1617.5,12.36442]
[1744526565221,0.15821766,1617.7,1617.6,6.95909]
[1744526565448,0.15821766,1617.7,1617.6,8.49183692]
[1744526565636,0.7564,1618.1,1617.8,6.18103]
[1744526566133,0.7564,1618.1,1617.6,8.49178692]
[1744526566134,6.18048,1618.0,1617.6,8.49178692]
[1744526566293,6.18048,1618.0,1617.6,6.95904]
[1744526566494,6.93653,1618.1,1617.6,6.9589]
[1744526566689,6.93653,1618.1,1617.7,6.18144]
[1744526568050,3.7564,1618.1,1617.7,6.18144]
[1744526568212,3.0,1618.1,1617.8,0.618144]
[1744526568725,3.0,1618.1,1617.8,6.799204]
[1744526569340,13.10815,1618.2,1617.8,6.799204]
[1744526569837,13.10815,1618.2,1617.8,0.618144]
[1744526570013,6.18062,1618.0,1617.6,6.95891]
[1744526570338,6.18062,1618.0,1617.6,13.14066]
[1744526570799,6.94128,1617.9,1617.5,12.36454]
[1744526571331,6.94128,1617.9,1617.4,6.9232]
[1744526571643,6.18166,1617.7,1617.4,6.18266]
[1744526571944,6.18166,1617.7,1617.3,12.3657]
[1744526572641,0.7603,1617.6,1617.3,12.3657]
[1744526573653,0.7603,1617.6,1617.4,6.18263]
[1744526573829,0.7603,1617.6,1617.5,6.18238]
[1744526574027,0.7603,1617.6,1617.4,6.18257]
[1744526574229,0.7603,1617.6,1617.4,7.419136]
[1744526574753,0.7603,1617.6,1617.4,1.236566]
[1744526574955,6.18238,1617.5,1617.2,6.18348]
[1744526575649,12.90341,1617.8,1617.4,6.18254]
[1744526575813,13.72651,1617.8,1617.4,6.18254]
[1744526576620,19.90798,1617.8,1617.4,6.18254]
[1744526576819,6.18169,1617.7,1617.4,6.18254]
[1744526577157,13.18765,1617.6,1617.2,6.18351]
[1744526577864,7.00535,1617.6,1617.2,12.3669]
[1744526578655,0.14144644,1617.5,1617.2,12.3669]
[1744526579023,0.14144644,1617.5,1617.3,6.18313]
[1744526579520,0.8231,1617.6,1617.3,6.18313]
[1744526579740,0.1411986,1617.4,1617.3,6.18313]
[1744526579927,0.8231,1617.6,1617.3,6.18313]
[1744526580132,0.1411986,1617.4,1617.3,6.18313]
[1744526580964,0.8231,1617.6,1617.3,6.18313]
[1744526581264,0.14062522,1617.4,1617.3,6.18295]
[1744526581558,0.14062522,1617.4,1617.3,12.3659]
[1744526581736,0.8231,1617.6,1617.3,12.3659]
[1744526581939,0.14087307,1617.5,1617.3,12.3659]
[1744526582135,0.14087307,1617.5,1617.3,6.18295]
[1744526584057,6.32341307,1617.5,1617.1,7.00675]
[1744526584259,6.94417,1617.4,1617.0,6.18422]
[1744526584432,13.12715,1617.4,1617.0,6.18422]
[1744526584631,0.14037735,1617.3,1617.0,6.18422]
[1744526585032,13.12715,1617.4,1617.0,6.18422]
[1744526585245,0.14012944,1617.2,1617.0,6.18422]
[1744526585563,0.1382185,1617.1,1617.0,6.18422]
[1744526585863,14.51137013,1617.4,1617.0,6.18422]
[1744526586367,14.51137013,1617.4,1616.9,6.95862]
[1744526586368,0.13871435,1617.3,1617.1,6.18389]
[1744526586536,0.13871435,1617.3,1617.2,6.95782]
[1744526586860,0.7614,1617.6,1617.5,6.18238]
[1744526587037,6.9334,1617.8,1617.5,6.18238]
[1744526587661,6.9334,1617.8,1617.6,6.18188]
[1744526587863,0.7614,1618.0,1617.7,6.18147]
[1744526588185,0.7614,1618.0,1617.7,12.36295]
[1744526589881,0.7614,1618.0,1617.7,6.18147]
[1744526592491,0.7614,1618.0,1617.6,6.95625]
[1744526592782,0.7614,1618.0,1617.7,6.18137]
[1744526593351,0.7614,1618.0,1617.7,6.880227]
[1744526593577,0.12940452,1617.9,1617.8,6.18119]
[1744526594838,0.12940452,1617.9,1617.7,6.880227]
[1744526598572,0.12940452,1617.9,1617.7,13.061617]
[1744526600489,0.12940452,1617.9,1617.8,6.18123]
[1744526600640,0.12940452,1617.9,1617.8,7.4873757]
[1744526600858,0.12940452,1617.9,1617.8,8.2694757]
[1744526601056,3.7735,1618.2,1617.9,6.18072]
[1744526601596,0.7735,1618.3,1618.1,6.18007]
[1744526602300,0.7735,1618.3,1618.0,6.18019]
[1744526602451,0.7735,1618.3,1617.9,6.1808]
[1744526602790,6.95315,1618.3,1617.9,6.1808]
[1744526602951,13.82907,1618.3,1617.9,6.1808]
[1744526603294,6.17972,1618.2,1617.9,6.1808]
[1744526603495,6.17972,1618.2,1617.8,6.9633]
[1744526603702,6.9537,1618.1,1617.7,12.3631]
[1744526603863,8.267044,1618.1,1617.7,12.3631]
[1744526604060,8.267044,1618.1,1617.7,6.18155]
[1744526604599,2.086844,1618.1,1617.6,6.96409]
[1744526604790,6.18075,1618.0,1617.6,6.96409]
[1744526604990,12.36157,1618.0,1617.6,6.96409]
[1744526605385,6.18075,1618.0,1617.6,6.18199]
[1744526605594,7.0017,1617.9,1617.6,6.18199]
[1744526607382,0.8208,1617.9,1617.6,6.18199]
[1744526607570,0.8208,1617.9,1617.6,7.418421]
[1744526608605,0.12217737,1617.8,1617.6,7.418421]
[1744526611526,0.12217737,1617.8,1617.6,1.236431]
[1744526612227,0.12217737,1617.8,1617.6,7.418341]
[1744526612383,0.12217737,1617.8,1617.6,1.236431]
[1744526612984,0.12217737,1617.8,1617.7,0.7974]
[1744526613340,0.8208,1618.1,1617.8,6.18103]
[1744526613496,7.00097,1618.1,1617.8,6.18103]
[1744526614563,7.00097,1618.1,1617.7,7.8005551]
[1744526614745,7.00097,1618.1,1617.7,6.97901]
[1744526615241,6.18063,1618.0,1617.7,6.97901]
[1744526615538,6.18063,1618.0,1617.7,6.18161]
[1744526617059,7.00097,1618.1,1617.7,12.3631]
[1744526617216,13.18126,1618.1,1617.7,6.18149]
[1744526617541,13.18126,1618.1,1617.8,0.29980244]
[1744526618205,13.18126,1618.1,1617.7,6.18149]
[1744526618406,13.18126,1618.1,1617.7,7.500931]
[1744526618739,13.18126,1618.1,1617.8,0.19309787]
[1744526619546,13.18126,1618.1,1617.7,6.18149]
[1744526619755,6.18053,1618.0,1617.7,6.18149]
[1744526620234,6.18053,1618.0,1617.8,0.29978595]
[1744526620758,6.18053,1618.0,1617.7,6.18149]
[1744526621561,6.18053,1618.0,1617.8,0.49284764]
[1744526621862,6.18053,1618.0,1617.8,0.19309766]
[1744526622661,6.18053,1618.0,1617.7,6.18149]
[1744526622969,6.18053,1618.0,1617.8,0.29976993]
[1744526623267,6.18053,1618.0,1617.7,6.18149]
[1744526623662,0.12299895,1617.9,1617.7,6.18149]
[1744526624327,7.00096,1618.1,1617.8,0.29966526]
[1744526624548,15.116243,1618.1,1617.8,0.29966526]
[1744526624855,8.935933,1618.1,1617.8,0.29966526]
[1744526625062,8.935933,1618.1,1617.7,6.18149]
[1744526625460,8.935933,1618.1,1617.7,12.3629]
[1744526625761,8.935933,1618.1,1617.8,0.29957281]
[1744526626065,2.755773,1618.1,1617.8,6.18102]
[1744526626366,8.935873,1618.1,1617.8,6.18102]
[1744526627863,8.115073,1618.1,1617.8,6.18102]
[1744526628163,16.17356,1618.4,1618.0,6.18027]
[1744526628355,16.17356,1618.4,1618.0,13.14444]
[1744526629463,13.17356,1618.4,1618.0,13.14444]
[1744526630038,6.9946,1618.4,1618.1,12.36001]
[1744526632953,6.9946,1618.4,1618.1,6.17993]
[1744526633369,8.311923,1618.4,1618.1,6.17993]
[1744526633577,14.491103,1618.4,1618.0,6.96428]
[1744526633779,14.491103,1618.4,1618.0,13.14466]
[1744526634285,14.491103,1618.4,1618.0,6.18038]
[1744526634807,6.17934,1618.3,1618.0,6.18038]
[1744526635903,14.491103,1618.4,1618.0,12.36066]
[1744526636581,8.1784403,1618.3,1617.9,6.9786]
[1744526636881,0.8154,1618.1,1617.8,6.18095]
[1744526637060,6.99562,1618.1,1617.8,6.18095]
[1744526637262,6.7305,1618.0,1617.7,6.18159]
[1744526639389,0.55,1618.0,1617.7,12.36304]
[1744526640388,0.55,1618.0,1617.7,6.18145]
[1744526642493,6.73047,1618.0,1617.6,6.97979]
[1744526642792,12.9112,1618.0,1617.6,6.97979]
[1744526642994,6.18092,1617.9,1617.6,6.97979]
[1744526643159,6.18092,1617.9,1617.6,6.18199]
[1744526643359,6.96792,1617.9,1617.6,6.18199]
[1744526645094,0.787,1617.9,1617.6,12.36381]
[1744526647191,0.787,1617.9,1617.7,6.18153]
[1744526647588,0.787,1617.9,1617.7,12.36301]
[1744526647790,0.787,1617.9,1617.7,6.18148]
[1744526649100,0.787,1617.9,1617.7,6.18144]
[1744526649270,0.55,1618.0,1617.7,6.799584]
[1744526649601,0.55,1618.0,1617.7,6.18144]
[1744526650201,6.98523,1618.1,1617.8,6.1811]
[1744526650501,6.73062,1618.0,1617.7,6.18144]
[1744526650860,0.8318,1617.9,1617.6,12.36364]
[1744526652602,0.8318,1618.1,1617.8,6.18123]
[1744526652805,8.331071,1618.1,1617.8,6.18123]
[1744526653605,14.511521,1618.1,1617.7,6.18155]
[1744526653799,13.19238,1618.1,1617.7,6.18155]
[1744526655202,6.7305,1618.0,1617.7,6.18155]
[1744526655903,0.811,1617.9,1617.5,0.7769]
[1744526656108,6.18124,1617.8,1617.4,6.93523]
[1744526656407,6.99289,1617.7,1617.5,0.29947828]
[1744526656708,13.874119,1617.7,1617.3,6.18309]
[1744526656908,13.17483,1617.7,1617.3,6.18309]
[1744526658118,6.99289,1617.7,1617.3,6.18309]
[1744526658301,6.99289,1617.7,1617.3,6.18299]
[1744526658502,6.99289,1617.7,1617.4,6.18271]
[1744526659117,6.99289,1617.7,1617.4,6.18255]
[1744526659118,0.811,1617.7,1617.4,6.18255]
[1744526659313,0.811,1617.7,1617.5,0.618255]
[1744526659475,6.9928,1617.7,1617.3,12.3661]
[1744526659677,6.9928,1617.7,1617.3,12.36602]
[1744526660304,6.99191,1617.9,1617.4,0.7525]
[1744526660504,6.99191,1617.9,1617.5,6.1822]
[1744526661013,6.73138,1617.8,1617.4,6.93523]
[1744526661183,0.811,1617.7,1617.4,6.18273]
[1744526662529,6.99275,1617.7,1617.4,6.18273]
[1744526663621,0.811,1617.7,1617.4,12.36533]
[1744526664383,0.811,1617.7,1617.4,6.1826]
[1744526667244,6.99262,1617.7,1617.3,12.36626]
[1744526667515,12.36455,1617.6,1617.2,6.93599]
[1744526667721,6.97258,1617.5,1617.2,6.18349]
[1744526668618,13.15523,1617.5,1617.1,6.18386]
[1744526669020,6.97258,1617.5,1617.1,12.36758]
[1744526669822,13.1552,1617.5,1617.1,6.18372]
[1744526670022,6.97258,1617.5,1617.1,12.36743]
[1744526670183,6.97258,1617.5,1617.1,13.979713]
[1744526670919,0.7902,1617.5,1617.2,6.18344]
[1744526671131,0.7902,1617.5,1617.2,12.36688]
[1744526671500,0.7902,1617.5,1617.3,6.18307]
[1744526672839,0.7902,1617.5,1617.2,6.18344]
[1744526673001,0.7902,1617.5,1617.2,7.5813953]
[1744526674299,6.97259,1617.5,1617.2,6.18344]
[1744526674759,6.97259,1617.5,1617.1,6.18383]
[1744526674760,13.15522,1617.5,1617.1,12.36766]
[1744526674923,6.97259,1617.5,1617.1,12.36766]
[1744526676541,6.97259,1617.5,1617.2,6.1835]
[1744526676707,0.7902,1617.5,1617.3,6.18308]
[1744526677308,0.7902,1617.5,1617.3,12.36603]
[1744526677520,0.7902,1617.5,1617.4,6.18276]
[1744526677840,0.7902,1617.5,1617.3,7.419608]
[1744526679847,6.18276,1617.4,1617.1,6.18388]
[1744526680039,13.15556,1617.5,1617.1,12.3676]
[1744526680550,13.15556,1617.5,1617.1,6.18372]
[1744526681038,6.97288,1617.5,1617.1,6.18372]
[1744526681354,6.97288,1617.5,1617.2,6.1834]
[1744526683221,13.15546,1617.5,1617.2,6.1834]
[1744526683851,6.97278,1617.5,1617.2,6.1834]
[1744526684050,6.97278,1617.5,1617.1,12.36748]
[1744526684245,6.97278,1617.5,1617.0,6.93963]
[1744526684554,6.18296,1617.4,1617.0,6.93963]
[1744526684723,12.366,1617.4,1617.0,6.93963]
[1744526685348,6.18296,1617.4,1617.0,13.12379]
[1744526685748,6.18296,1617.4,1617.0,13.12372]
[1744526686249,6.18296,1617.4,1617.0,14.436092]
[1744526690158,12.36592,1617.4,1617.0,14.436092]
[1744526691559,12.36592,1617.4,1617.0,8.251932]
[1744526691760,6.18296,1617.4,1617.0,14.436082]
[1744526691962,12.36596,1617.4,1617.0,8.251922]
[1744526692126,6.18315,1617.3,1617.0,8.251922]
[1744526692457,6.18296,1617.4,1617.1,6.18386]
[1744526692660,0.7902,1617.5,1617.1,1.4435752]
[1744526692824,6.97398,1617.8,1617.5,6.94674]
[1744526693939,6.97398,1617.8,1617.5,0.7645]
[1744526694362,6.97398,1617.8,1617.4,6.18274]
[1744526694661,6.97398,1617.8,1617.4,13.12982]
[1744526695461,6.97398,1617.8,1617.4,14.442802]
[1744526696368,6.97398,1617.8,1617.4,8.260062]
[1744526697283,13.15543,1617.8,1617.4,8.260062]
[1744526700369,0.7925,1617.8,1617.5,6.18222]
[1744526700771,6.97374,1617.8,1617.5,6.18222]
[1744526701073,6.97374,1617.8,1617.5,7.6264612]
[1744526701969,6.97374,1617.8,1617.5,1.4442412]
[1744526702169,6.97374,1617.8,1617.4,13.12992]
[1744526702382,6.97374,1617.8,1617.4,6.9471]
[1744526702953,6.97374,1617.8,1617.5,6.18224]
[1744526703774,13.15518,1617.8,1617.4,6.9471]
[1744526704273,6.97374,1617.8,1617.4,13.12968]
[1744526704473,13.15519,1617.8,1617.4,8.260048]
[1744526705086,6.97374,1617.8,1617.4,14.442628]
[1744526705481,13.15518,1617.8,1617.4,14.442628]
[1744526705781,13.15518,1617.8,1617.4,8.260048]
[1744526705985,13.15531,1617.8,1617.4,8.260048]
[1744526706280,6.97374,1617.8,1617.4,14.442678]
[1744526706474,13.15517,1617.8,1617.4,14.442678]
[1744526706678,13.15517,1617.8,1617.4,8.260048]
[1744526707265,13.15522,1617.8,1617.4,8.260048]
[1744526708184,0.8126,1617.6,1617.2,6.1835]
[1744526708391,0.8126,1617.6,1617.3,6.18297]
[1744526708587,0.8126,1617.6,1617.4,6.18268]
[1744526709394,0.8126,1617.6,1617.4,6.18258]
[1744526710190,0.7957,1618.2,1617.9,6.18063]
[1744526710489,0.7957,1618.2,1617.9,12.36127]
[1744526711191,0.7957,1618.2,1617.9,6.18063]
[1744526712188,6.18012,1618.1,1617.8,6.18117]
[1744526712393,13.853008,1618.2,1617.8,6.18117]
[1744526714097,7.672938,1618.2,1617.8,6.18109]
[1744526716700,13.852858,1618.2,1617.8,6.18109]
[1744526717267,6.97543,1618.2,1617.8,12.36216]
[1744526717612,6.97543,1618.2,1617.9,6.18083]
[1744526718503,9.31986074,1618.4,1618.2,6.17958]
[1744526718504,6.9257,1618.4,1618.2,6.17958]
[1744526718801,0.02,1618.4,1618.2,6.1795]
[1744526718975,0.02,1618.4,1618.3,7.00942]
[1744526719179,0.02,1618.4,1618.3,8.946266]
[1744526719578,0.02,1618.4,1618.3,9.24471675]
[1744526720003,0.02,1618.4,1618.3,9.43772494]
[1744526720699,0.02,1618.4,1618.3,9.13927419]
[1744526720902,0.02,1618.4,1618.3,8.946266]
[1744526721474,0.02,1618.4,1618.3,20.28544519]
[1744526721683,0.02,1618.4,1618.3,20.7522119]
[1744526721905,1e-05,1618.4,1618.3,21.0930816]
[1744526722107,1e-05,1618.4,1618.3,21.39108461]
[1744526722912,1e-05,1618.4,1618.3,21.58405636]
[1744526723605,1e-05,1618.4,1618.3,23.72405636]
[1744526724900,1e-05,1618.4,1618.3,17.57105636]
[1744526725102,1e-05,1618.4,1618.3,11.946266]
[1744526725293,1e-05,1618.4,1618.3,1.936846]
[1744526725608,1e-05,1618.4,1618.2,6.1795]
[1744526725973,1e-05,1618.4,1618.3,6.17932]
[1744526726784,1e-05,1618.4,1618.2,6.1795]
[1744526727130,1e-05,1618.4,1618.2,12.35898]
[1744526727283,1e-05,1618.4,1618.1,0.7997]
[1744526727482,0.7831,1618.3,1618.0,6.18041]
[1744526727705,0.7831,1618.3,1618.1,6.18007]
[1744526727907,0.7831,1618.3,1618.1,6.17994]
[1744526728316,1e-05,1618.4,1618.2,6.17956]
[1744526729011,1e-05,1618.4,1618.1,6.17991]
[1744526729311,1e-05,1618.4,1617.9,0.7997]
[1744526729498,1e-05,1618.4,1618.1,6.17987]
[1744526729704,1e-05,1618.4,1618.2,6.17956]
[1744526730617,1e-05,1618.4,1618.2,12.35906]
[1744526731420,0.34038386,1618.3,1618.2,12.35906]
[1744526731722,1e-05,1618.4,1618.2,12.35906]
[1744526731925,1e-05,1618.4,1618.3,6.17932]
[1744526732883,1e-05,1618.4,1618.2,6.1795]
[1744526733821,1e-05,1618.4,1618.2,12.359]
[1744526734022,1e-05,1618.4,1618.3,6.17932]
[1744526737499,0.82781,1618.4,1618.3,6.17932]
[1744526737702,0.82781,1618.4,1618.2,6.1795]
[1744526739415,0.82781,1618.4,1618.2,12.35907]
[1744526739751,0.82781,1618.4,1618.2,6.1795]
[1744526740241,1.528452,1618.4,1618.2,6.1795]
[1744526740445,1.528452,1618.4,1618.1,6.18005]
[1744526740446,1.528452,1618.4,1618.1,12.3601]
[1744526740743,0.82781,1618.4,1618.1,12.3601]
[1744526741857,0.82781,1618.4,1618.2,6.1797]
[1744526743849,0.34038433,1618.3,1618.2,6.1797]
[1744526744215,0.82781,1618.4,1618.2,6.1797]
[1744526744411,0.34038433,1618.3,1618.2,6.1797]
[1744526744816,0.82781,1618.4,1618.2,6.1797]
[1744526745017,0.34038433,1618.3,1618.2,6.1797]
[1744526745361,0.82781,1618.4,1618.2,6.1797]
[1744526745666,0.34038433,1618.3,1618.2,6.1797]
[1744526745960,0.82781,1618.4,1618.2,6.1797]
[1744526746166,0.34038433,1618.3,1618.2,6.1797]
[1744526746372,0.82781,1618.4,1618.2,6.1797]
[1744526746572,0.34038433,1618.3,1618.2,6.1797]
[1744526746732,0.82781,1618.4,1618.2,6.1797]
[1744526746932,0.34038433,1618.3,1618.2,6.1797]
[1744526747241,0.82781,1618.4,1618.2,6.1797]
[1744526747550,0.34038433,1618.3,1618.2,6.1797]
[1744526747752,0.82781,1618.4,1618.2,6.1797]
[1744526747957,0.34038433,1618.3,1618.2,6.1797]
[1744526748263,0.82781,1618.4,1618.2,6.1797]
[1744526748431,0.34038433,1618.3,1618.2,6.1797]
[1744526748761,0.82781,1618.4,1618.2,6.1797]
[1744526749064,0.34038433,1618.3,1618.1,6.17995]
[1744526749427,0.82781,1618.4,1618.1,6.17995]
[1744526749658,0.34015074,1618.2,1618.1,6.17995]
[1744526749870,0.82781,1618.4,1618.1,6.17995]
[1744526750162,2.761027,1618.4,1618.1,6.17995]
[1744526750331,0.34038433,1618.3,1618.1,6.17995]